Workbook

Sheet Лист1 (hidden)
C2: 71775516.18 | E2: 1.305774206 | H2: =C2*E2 -> 93722617.68
C3: 3443210 | E3: 1.305774206 | H3: =C3*E3 -> 4496054.81
C4: 37819459.86 | E4: 1.305774206 | H4: =C4*E4 -> 49383675.19
C5: 36403853.33 | E5: 1.305774206 | H5: =C5*E5 -> 47535212.69
C6: 91490182.03 | E6: 1.305774206 | H6: 119465519.8
C7: 422220 | E7: 1.305774206 | H7: =C7*E7 -> 551323.99
C8: 26924522.73 | E8: 1.305774206 | H8: =C8*E8 -> 35157347.3
C9: 31400 | E9: 1.305774206 | H9: =C9*E9 -> 41001.31
C10: 85900443.38 | E10: 1.305774206 | H10: =C10*E10 -> 112166583.3
C11: 27715925.66 | E11: 1.305774206 | H11: =C11*E11 -> 36190740.83
C12: 15082121.47 | E12: 1.305774206 | H12: 19693845.19
C13: 1121130 | E13: 1.305774206 | H13: =C13*E13 -> 1463942.64
C14: 345147452.9 | E14: 1.305774206 | H14: =C14*E14 -> 450684641.3
C15: 858266369.8 | E15: 1.305774206 | H15: =C15*E15 -> 1120702088
C16: 51380 | E16: 1.305774206 | H16: =C16*E16 -> 67090.68
C17: 25571188.46 | E17: 1.305774206 | H17: =C17*E17 -> 33390198.32
C18: 402067507.5 | E18: 1.305774206 | H18: =C18*E18 -> 525009380.5
C19: 39946960.2 | E19: 1.305774206 | H19: 52161710.25
C20: 313980639.3 | E20: 1.305774206 | H20: 409987820.1
C21: 74502373.84 | E21: 1.305774206 | H21: 97283278.08
C22: 27649640 | E22: 1.305774206 | H22: 36104186.73
C23: 213960 | E23: 1.305774206 | H23: 279383.45
C24: 65191210 | E24: 1.305774206 | H24: 85125000.5
C25: 38320278.44 | E25: 1.305774206 | H25: 50037631.17
B26: итого | C26: =SUM(C2:C25)-C3-C7-C9-C13-C16 -> 2583969605
B27: ндс за искл. П.23 | C27: 516615311
B28: всего | C28: =C26+C27 -> 3100584916
B29: возврат | C29: =C3+C7+C9+C13+C16 -> 5069340
B30: 2019 | C30: =C28 -> 3100584916
B31: 2022 | C31: 3824199424 | D31: =C31/C30 -> 1.23338
B32: 2027 | C32: 4042812566 | H32: =SUM(H2:H31)-H3-H7-H9-H13-H16 -> 3374080860 | J32: =C34-H32 -> -4876035.21
C33: 673607740.7 | E33: =C32/C30 -> 1.303887065
C34: =C32-C33 -> 3369204825 | E34: =E33/1.2 -> 1.086572554
C36: =C34/C30 -> 1.086635237

Sheet 1.1-4.1к1
A10: Перевозка грузов на расстояние до 15 км
A11: № | B11: № локальных смет | C11: Наименование работ и затрат | D11: Ед. | E11: Кол-во ед. изм. | F11: Сметная стоимость с HP и СП в базисных ценах на 01.01.2000г., руб
A12: пп | D12: изм.
F13: на единицу | G13: общая
A14: 1 | B14: 2 | C14: 3 | D14: 4 | E14: 5 | F14: 6 | G14: 7
H15: 2.7 | I15: Подг.раб | J15: ЗУ | K15: Стоимость в базе | L15: Объем | M15: Стоимость за ед. в базе | O15: Пересчёт в текущие цены на 2 квартал 2019г.
J16: 0.027 | K16: =G15+G16+G17+G18+G19+G20+G21+G22+G23+G24+G25+G26+G27+G28+G29+G30+G31+G32+G33+G34+G35+G36+G37+G38+G39+G40+G41 -> 0 | L16: =E15+E16+E17+E18+E19+E20+E21+E22+E23+E24+E25+E26+E27+E28+E29+E30+E31+E32+E33+E34+E35+E36+E37+E38+E39+E40+E41 -> 0 | M16: =K16/L16 ->  | N16: =M16*E71 ->  | O16: =N16*L16 -> 
I18: Сети связи
J19: =318931+1018+198200 -> 518149
I22: переустр-во эл.снабж.
I29: теплосеть
I34: НВК
I41: ГАЗ
H42: 3.5 | J42: ЗУ | K42: Стоимость в базе | L42: Объем | M42: Стоимость за ед. в базе | O42: Пересчёт в текущие цены на 2 квартал 2019г.
H43: 2.5 | J43: 0.035 | K43: =G42 -> 0 | L43: =E42 -> 0 | M43: =K43/L43 ->  | N43: =M43*6.43 ->  | O43: =N43*L43 -> 
H44: 2.15 | J44: ЗУ | K44: Стоимость в базе | L44: Объем | M44: Стоимость за ед. в базе | O44: Пересчёт в текущие цены на 2 квартал 2019г.
J45: 0.025 | K45: =G43 -> 0 | L45: =E43 -> 0 | M45: =K45/L45 ->  | N45: =M45*6.43 ->  | O45: =N45*L45 -> 
I46: светофоры | J46: ЗУ | K46: Стоимость в базе | L46: Объем | M46: Стоимость за ед. в базе | O46: Пересчёт в текущие цены на 2 квартал 2019г.
J47: 0.0215 | K47: =G44+G45+G46+G47+G48 -> 0 | L47: =E44+E45+E46+E47+E48 -> 0 | M47: =ROUND(K47/L47,2) ->  | N47: =ROUND(M47*6.43,2) ->  | O47: =N47*L47 -> 
I49: эд.снабж. Светофоров | J49: ЗУ | K49: Стоимость в базе | L49: Объем | M49: Стоимость за ед. в базе | O49: Пересчёт в текущие цены на 2 квартал 2019г.
H50: 2 | J50: 0.02 | K50: =G49+G50+G51+G52+G53+G54+G55+G56+G57 -> 0 | L50: =E49+E50+E51+E52+E53+E54+E55+E56+E57 -> 0 | M50: =ROUND(K50/L50,2) ->  | N50: =ROUND(M50*6.43,2) ->  | O50: =N50*L50 -> 
I52: эл. Снабж. КНС
I58: ЛОС, КНС | J58: ЗУ | K58: Стоимость в базе | L58: Объем | M58: Стоимость за ед. в базе | O58: Пересчёт в текущие цены на 2 квартал 2019г.
H59: 2.6 | J59: 0.026 | K59: =G58+G59+G60+G61 -> 0 | L59: =E58+E59+E60+E61 -> 0 | M59: =ROUND(K59/L59,2) ->  | N59: =ROUND(M59*6.43,2) ->  | O59: =N59*L59 -> 
K61: Стоимость в базе | L61: Объем | M61: Стоимость за ед. в базе | O61: Пересчёт в текущие цены на 2 квартал 2019г.
H62: 2.29 | I62: ШЭ | K62: =G62 -> 0 | L62: =E62 -> 0 | M62: =ROUND(K62/L62,2) ->  | N62: =ROUND(M62*6.43,2) ->  | O62: =N62*L62 -> 

Sheet 1.1-4.2к1
A10: Перевозка грузов на расстояние до 13 км
A11: № | B11: № локальных смет | C11: Наименование работ и затрат | D11: Ед. | E11: Кол-во ед. изм. | F11: Сметная стоимость с HP и СП в базисных ценах на 01.01.2000г., руб
A12: пп | D12: изм. | O12: =O16+O36+O38+O40 -> 
F13: на единицу | G13: общая
A14: 1 | B14: 2 | C14: 3 | D14: 4 | E14: 5 | F14: 6 | G14: 7
H15: 2.7 | I15: Подг.раб. | J15: ЗУ | K15: Стоимость в базе | L15: Объем | M15: Стоимость за ед. в базе | O15: Пересчёт в текущие цены на 2 квартал 2019г.
J16: 0.027 | K16: =G15+G16+G18+G19+G17+G20+G21+G22+G23+G24+G25+G26+G27+G28+G29+G30+G31+G32+G33+G34 -> 0 | L16: =E15+E16+E18+E19+E17+E20+E21+E22+E23+E24+E25+E26+E27+E28+E29+E30+E31+E32+E33+E34 -> 0 | M16: =K16/L16 ->  | N16: =M16*6.43 ->  | O16: =N16*L16 -> 
I18: сети связи
I20: переустр-во эл.снабж.
I26: НВК
K28: =E26+E27+E28+E29+E30 -> 0
I31: ГАЗ
H35: 3.5 | J35: ЗУ | K35: Стоимость в базе | L35: Объем | M35: Стоимость за ед. в базе | O35: Пересчёт в текущие цены на 2 квартал 2019г.
H36: 2.5 | J36: 0.035 | K36: =G35 -> 0 | L36: =E35 -> 0 | M36: =K36/L36 ->  | N36: =M36*6.43 ->  | O36: =N36*L36 -> 
H37: 2.15 | J37: ЗУ | K37: Стоимость в базе | L37: Объем | M37: Стоимость за ед. в базе | O37: Пересчёт в текущие цены на 2 квартал 2019г.
J38: 0.025 | K38: =G36 -> 0 | L38: =E36 -> 0 | M38: =K38/L38 ->  | N38: =M38*6.43 ->  | O38: =N38*L38 -> 
I39: светофоры | J39: ЗУ | K39: Стоимость в базе | L39: Объем | M39: Стоимость за ед. в базе | O39: Пересчёт в текущие цены на 2 квартал 2019г.
J40: 0.0215 | K40: =G37+G38+G39+G40 -> 0 | L40: =E37+E38+E39+E40 -> 0 | M40: =ROUND(K40/L40,2) ->  | N40: =ROUND(M40*6.43,2) ->  | O40: =N40*L40 -> 
H41: 2 | I41: эд.снабж. Светофоров | J41: ЗУ | K41: Стоимость в базе | L41: Объем | M41: Стоимость за ед. в базе | O41: Пересчёт в текущие цены на 2 квартал 2019г.
J42: 0.02 | K42: =G41+G42+G43+G44+G45 -> 0 | L42: =E41+E42+E43+E44+E45 -> 0 | M42: =ROUND(K42/L42,2) ->  | N42: =ROUND(M42*6.43,2) ->  | O42: =N42*L42 -> 
I43: эл. Снабж. КНС
I45: НО
I46: ЛОС,КНС | J46: ЗУ | K46: Стоимость в базе | L46: Объем | M46: Стоимость за ед. в базе | O46: Пересчёт в текущие цены на 2 квартал 2019г.
H47: 2.6 | J47: 0.026 | K47: =G46+G47+G48 -> 0 | L47: =E46+E47+E48 -> 0 | M47: =ROUND(K47/L47,2) ->  | N47: =ROUND(M47*6.43,2) ->  | O47: =N47*L47 -> 
K48: Стоимость в базе | L48: Объем | M48: Стоимость за ед. в базе | O48: Пересчёт в текущие цены на 2 квартал 2019г.
H49: 1.95 | I49: ШЭ | K49: =G49 -> 0 | L49: =E49 -> 0 | M49: =ROUND(K49/L49,2) ->  | N49: =ROUND(M49*6.43,2) ->  | O49: =N49*L49 -> 

Sheet 1.1-4.3
A10: Перевозка грузов на расстояние до 19 км
A11: № | B11: № локальных смет | C11: Наименование смет | D11: Ед. | E11: Кол-во ед. изм. | F11: Сметная стоимость с HP и СП в базисных ценах на 01.01.2000г., руб
A12: пп | D12: изм.
F13: на единицу | G13: общая
A14: 1 | B14: 2 | C14: 3 | D14: 4 | E14: 5 | F14: 6 | G14: 7
H15: подгт. Раб
H18: ГАЗ

Sheet 1.1-4.7
A9: Расчет единичной расценки | E9: Код | F9: =MIDB(CELL("filename",F9),SEARCH("]",CELL("filename",F9))+1,9) -> 1.1-4.7 | H9: согласовано 08.09.2023
A10: Перевозка грузов на расстояние до 20 км
A11: № | B11: № № локальных смет | C11: Наименование работ и затрат | D11: Ед. | E11: Кол-во ед. изм. | F11: Сметная стоимость с HP и СП в базисных ценах на 01.01.2000г., руб
A12: пп | D12: изм.
F13: на единицу | G13: общая
I18: =254039+485+263069 -> 517593

Sheet 1.1-4.8
A9: Расчет единичной расценки | E9: Код | F9: =MIDB(CELL("filename",F9),SEARCH("]",CELL("filename",F9))+1,8) -> 1.1-4.8 | H9: согласовано 08.09.2023
A10: Перевозка грузов на расстояние до 11 км
A11: № | B11: № № локальных смет | C11: Наименование смет | D11: Ед. | E11: Кол-во ед. изм. | F11: Сметная стоимость с HP и СП в базисных ценах на 01.01.2000г., руб
A12: пп | D12: изм.
F13: на единицу | G13: общая

Sheet 1.1-4.9
A9: Расчет единичной расценки | E9: Код | F9: =MIDB(CELL("filename",F9),SEARCH("]",CELL("filename",F9))+1,9) -> 1.1-4.9 | H9: согласовано 08.09.2023
A10: Перевозка грузов на расстояние до 10 км
A11: № | B11: № № локальных смет | C11: Наименование смет | D11: Ед. | E11: Кол-во ед. изм. | F11: Сметная стоимость с HP и СП в базисных ценах на 01.01.2000г., руб
A12: пп | D12: изм.
F13: на единицу | G13: общая

Sheet лист для нумерации
A2: =IFERROR(INDEX(Список,ROW()),"") -> 1.1-4.1к1 | B2: =INDIRECT("'"&A2&"'!A10") -> Перевозка грузов на расстояние до 15 км
A3: =IFERROR(INDEX(Список,ROW()),"") -> 1.1-4.2к1 | B3: =INDIRECT("'"&A3&"'!A10") -> Перевозка грузов на расстояние до 13 км
A4: =IFERROR(INDEX(Список,ROW()),"") -> 1.1-4.3 | B4: =INDIRECT("'"&A4&"'!A10") -> Перевозка грузов на расстояние до 19 км
A5: =IFERROR(INDEX(Список,ROW()),"") -> 1.1-4.7 | B5: =INDIRECT("'"&A5&"'!A10") -> Перевозка грузов на расстояние до 20 км
A6: =IFERROR(INDEX(Список,ROW()),"") -> 1.1-4.8 | B6: =INDIRECT("'"&A6&"'!A10") -> Перевозка грузов на расстояние до 11 км
A7: =IFERROR(INDEX(Список,ROW()),"") -> 1.1-4.9 | B7: =INDIRECT("'"&A7&"'!A10") -> Перевозка грузов на расстояние до 10 км
A8: =IFERROR(INDEX(Список,ROW()),"") -> лист для нумерации
A9: =IFERROR(INDEX(Список,ROW()),"") -> 
A10: =IFERROR(INDEX(Список,ROW()),"") -> 
